[Event "1st Grandiscacchi Cattolica 2022"]
[Site "Cattolica"]
[Date "2022.03.04"]
[Round "4.6"]
[White "Lodici, Lorenzo"]
[Black "Assaubayeva, Bibisara"]
[Result "1/2-1/2"]
[ECO "E71"]
[WhiteElo "2537"]
[BlackElo "2434"]
[Annotator "ChessBase"]
[PlyCount "82"]
[EventDate "2022.03.03"]
[EventType "swiss"]
[EventCountry "ITA"]
[SourceTitle "playchess.com"]
[Source "ChessBase"]
[SourceQuality "1"]
[TimeControl "5400+30"]

1. d4 {[%emt 0:01:36]} Nf6 {[%emt 0:00:09]} 2. c4 {[%emt 0:00:03]} g6 {[%emt 0:00:09]} 3. Nc3 {[%emt 0:00:05]} Bg7 {[%emt 0:00:09]} 4. e4 {[%emt 0:00:04]} d6 {[%emt 0:00:08]} 5. h3 {[%emt 0:00:02]} O-O {[%emt 0:00:11]} 6. Be3 {[%emt 0:00:03]} e5 {[%emt 0:00:47]} 7. d5 {[%emt 0:00:04]} Na6 {[%emt 0:00:06]} 8. g4 {[%emt 0:00:11]} Nc5 {[%emt 0:00:12]} 9. f3 {[%emt 0:00:24]} c6 {[%emt 0:01:58]} 10. Qd2 {[%emt 0:00:29]} cxd5 {[%emt 0:01:08]} 11. cxd5 {[%emt 0:00:04]} Ne8 {[%emt 0:03:52]} 12. Nge2 {[%emt 0:08:42]} f5 {[%emt 0:05:01]} 13. gxf5 {[%emt 0:00:56]} gxf5 {[%emt 0:00:39]} 14. exf5 Bxf5 {[%emt 0:06:33]} 15. Ng3 {[%emt 0:00:46]} Bg6 {[%emt 0:02:46]} 16. h4 {[%emt 1:25:01]} Rxf3 {[%emt 0:06:14]} 17. h5 {[%emt 0:00:00]} Rxg3 {[%emt 0:10:09]} 18. hxg6 {[%emt 0:00:00]} hxg6 {[%emt 0:02:40]} 19. O-O-O {[%emt 0:00:00]} Qb6 {[%emt 0:08:22]} 20. Rh3 {[%emt 0:00:00]} Rg4 {[%emt 0:02:47]} 21. Qe2 {[%emt 0:00:00]} Nf6 {[%emt 0:06:02]} 22. Rf3 {[%emt 0:00:00]} Rd4 {[%emt 0:08:12]} 23. Qg2 {[%emt 0:00:00]} Rxd1+ {[%emt 0:09:33]} 24. Kxd1 {[%emt 0:00:00]} Qb4 {[%emt 0:04:38]} 25. Rg3 {[%emt 0:00:00]} Kf7 {[%emt 0:06:15]} 26. Rxg6 {[%emt 0:00:00]} Rg8 {[%emt 0:00:13]} 27. Nb5 {[%emt 0:00:00]} Na4 {[%emt 0:02:47]} 28. Bd2 {[%emt 0:04:11]} Qxb2 {[%emt 0:06:54]} 29. Bd3 {[%emt 0:00:32]} Qa1+ {[%emt 0:02:28]} 30. Ke2 {[%emt 0:00:18]} Nb2 {[%emt 0:01:05]} 31. Nxd6+ {[%emt 0:00:49]} Kf8 {[%emt 0:00:03]} 32. Bc2 {[%emt 0:00:26]} Qxa2 {[%emt 0:01:07]} 33. Bb4 {[%emt 0:00:56]} Qa6+ {[%emt 0:01:33]} 34. Ke1 {[%emt 0:01:10]} Nd3+ {[%emt 0:02:00]} 35. Bxd3 {[%emt 0:00:18]} Qxd3 {[%emt 0:00:02]} 36. Rxf6+ {[%emt 0:00:48]} Bxf6 {[%emt 0:00:02]} 37. Nf5+ {[%emt 0:00:05]} Be7 {[%emt 0:00:18]} 38. Bxe7+ {[%emt 0:00:11]} Kf7 {[%emt 0:00:01]} 39. Nh6+ {[%emt 0:00:32]} Kxe7 {[%emt 0:00:01]} 40. Nxg8+ {[%emt 0:00:12]} Kd6 {[%emt 0:00:00]} 41. Qg7 {[%emt 0:01:14]} Qe3+ {[%emt 0:01:37]} 1/2-1/2

[Event "1st Grandiscacchi Cattolica 2022"]
[Site "Cattolica"]
[Date "2022.03.05"]
[Round "5.6"]
[White "Nesterov, Arseniy"]
[Black "Willow, Jonah B"]
[Result "1/2-1/2"]
[ECO "E39"]
[WhiteElo "2522"]
[BlackElo "2365"]
[Annotator "ChessBase"]
[PlyCount "81"]
[EventDate "2022.03.03"]
[EventType "swiss"]
[EventCountry "ITA"]
[SourceTitle "playchess.com"]
[Source "ChessBase"]
[SourceQuality "1"]
[TimeControl "5400+30"]

1. d4 {[%emt 0:00:11]} Nf6 {[%emt 0:01:15]} 2. c4 {[%emt 0:00:11]} e6 {[%emt 0:00:19]} 3. Nc3 {[%emt 0:00:08]} Bb4 {[%emt 0:01:35]} 4. Qc2 {[%emt 0:00:45]} O-O {[%emt 0:00:14]} 5. Nf3 {[%emt 0:00:19]} c5 {[%emt 0:00:41]} 6. dxc5 {[%emt 0:00:46]} Na6 {[%emt 0:01:02]} 7. g3 {[%emt 0:00:10]} Nxc5 {[%emt 0:00:56]} 8. Bg2 {[%emt 0:00:06]} b6 {[%emt 0:00:17]} 9. O-O {[%emt 0:01:41]} Bb7 {[%emt 0:00:30]} 10. Nb5 {[%emt 0:12:10]} Be4 {[%emt 0:00:13]} 11. Qd1 {[%emt 0:00:04]} Nb7 {[%emt 0:00:09]} 12. a3 {[%emt 0:06:59]} Be7 {[%emt 0:00:08]} 13. Bf4 {[%emt 0:01:25]} Rc8 {[%emt 0:05:02]} 14. Rc1 {[%emt 0:14:13]} a6 {[%emt 0:00:30]} 15. Nd6 {[%emt 0:01:36]} Nxd6 {[%emt 0:05:28]} 16. Bxd6 {[%emt 0:00:13]} Bxd6 {[%emt 0:06:23]} 17. Qxd6 {[%emt 0:00:15]} Rc6 {[%emt 0:00:14]} 18. Qd4 {[%emt 0:01:16]} Qa8 {[%emt 0:01:06]} 19. Rfd1 {[%emt 0:07:38]} Rfc8 {[%emt 0:02:55]} 20. Bf1 {[%emt 0:04:07]} Bxf3 {[%emt 0:02:22]} 21. exf3 {[%emt 0:00:02]} d5 {[%emt 0:00:20]} 22. Rc3 {[%emt 0:02:51]} dxc4 {[%emt 0:03:20]} 23. Rxc4 {[%emt 0:00:17]} b5 {[%emt 0:03:30]} 24. Rxc6 {[%emt 0:00:14]} Qxc6 {[%emt 0:00:06]} 25. f4 {[%emt 0:00:46]} Qd5 {[%emt 0:11:26]} 26. a4 {[%emt 0:08:52]} h6 {[%emt 0:09:14]} 27. axb5 {[%emt 0:00:15]} axb5 {[%emt 0:00:05]} 28. Qxd5 {[%emt 0:00:18]} Nxd5 {[%emt 0:00:34]} 29. f5 {[%emt 0:06:07]} Rc5 {[%emt 0:11:37]} 30. Re1 {[%emt 0:04:05]} Nc7 {[%emt 0:03:01]} 31. b4 {[%emt 0:01:06]} Rd5 {[%emt 0:07:20]} 32. Rc1 {[%emt 0:06:53]} Na6 {[%emt 0:01:18]} 33. fxe6 {[%emt 0:02:03]} fxe6 {[%emt 0:00:04]} 34. Rc6 {[%emt 0:00:34]} Nxb4 {[%emt 0:00:12]} 35. Rxe6 {[%emt 0:00:09]} Nc2 {[%emt 0:03:15]} 36. Rb6 {[%emt 0:00:12]} Nd4 {[%emt 0:00:09]} 37. Kg2 {[%emt 0:00:07]} Kf7 {[%emt 0:01:19]} 38. Bd3 {[%emt 0:00:14]} Ke7 {[%emt 0:00:33]} 39. h4 {[%emt 0:04:07]} Rd6 {[%emt 0:00:13]} 40. Rb7+ {[%emt 0:00:01]} Rd7 {[%emt 0:00:06]} 41. Rb6 {[%emt 0:00:03]} 1/2-1/2

[Event "1st Grandiscacchi Cattolica 2022"]
[Site "Cattolica"]
[Date "2022.03.05"]
[Round "5.7"]
[White "Assaubayeva, Bibisara"]
[Black "Dimitrov, Radoslav"]
[Result "1/2-1/2"]
[ECO "E10"]
[WhiteElo "2434"]
[BlackElo "2487"]
[Annotator "ChessBase"]
[PlyCount "172"]
[EventDate "2022.03.03"]
[EventType "swiss"]
[EventCountry "ITA"]
[SourceTitle "playchess.com"]
[Source "ChessBase"]
[SourceQuality "1"]
[TimeControl "5400+30"]

1. d4 {[%emt 1:31:00]} Nf6 {[%emt 0:10:16]} 2. c4 {[%emt 0:00:00]} e6 {[%emt 0:00:05]} 3. Nf3 {[%emt 0:00:00]} c5 {[%emt 0:00:03]} 4. d5 {[%emt 0:00:00]} b5 {[%emt 0:00:05]} 5. e4 {[%emt 0:00:00]} Nxe4 {[%emt 0:00:54]} 6. Bd3 {[%emt 0:00:00]} Nd6 {[%emt 0:00:28]} 7. dxe6 {[%emt 0:00:00]} dxe6 {[%emt 0:00:32]} 8. cxb5 {[%emt 0:00:00]} a6 {[%emt 0:00:06]} 9. bxa6 {[%emt 0:00:00]} Nxa6 {[%emt 0:01:36]} 10. O-O {[%emt 0:00:00]} Nb4 {[%emt 0:00:20]} 11. Be2 {[%emt 0:00:00]} Be7 {[%emt 0:02:56]} 12. Nc3 {[%emt 0:00:00]} O-O {[%emt 0:03:34]} 13. a3 {[%emt 0:00:00]} Nc6 {[%emt 0:02:46]} 14. Bf4 {[%emt 0:00:00]} Bb7 {[%emt 0:03:25]} 15. Rc1 {[%emt 0:00:00]} Na5 {[%emt 0:11:03]} 16. b4 {[%emt 0:00:00]} cxb4 {[%emt 0:02:37]} 17. axb4 {[%emt 0:00:00]} Nac4 {[%emt 0:02:26]} 18. b5 {[%emt 0:00:00]} Qa5 {[%emt 0:02:42]} 19. Qb3 {[%emt 0:00:00]} Rfc8 {[%emt 0:06:03]} 20. Rfd1 {[%emt 0:00:00]} Bf6 {[%emt 0:02:41]} 21. Bxd6 {[%emt 0:00:00]} Nxd6 {[%emt 0:00:02]} 22. Rxd6 {[%emt 0:00:00]} Rxc3 {[%emt 0:03:29]} 23. Rxc3 {[%emt 0:00:00]} Qxc3 {[%emt 0:00:13]} 24. Qxc3 {[%emt 0:00:00]} Bxc3 {[%emt 0:00:02]} 25. h4 {[%emt 0:00:00]} Kf8 {[%emt 0:02:19]} 26. Rd7 {[%emt 0:00:00]} Bd5 {[%emt 0:01:31]} 27. Rc7 {[%emt 0:04:30]} Ba5 {[%emt 0:00:30]} 28. Rc1 {[%emt 0:01:09]} Bb6 {[%emt 0:03:43]} 29. Ne5 {[%emt 0:01:16]} Ke7 {[%emt 0:00:01]} 30. Nc6+ {[%emt 0:03:06]} Kd7 {[%emt 0:03:51]} 31. Ne5+ {[%emt 0:01:39]} Ke7 {[%emt 0:07:01]} 32. Nc6+ {[%emt 0:00:04]} Ke8 {[%emt 0:00:04]} 33. Nb4 {[%emt 0:00:21]} Bb7 {[%emt 0:01:29]} 34. Na6 {[%emt 0:01:19]} Rd8 {[%emt 0:00:36]} 35. Rc2 {[%emt 0:01:05]} Rd4 {[%emt 0:01:27]} 36. h5 {[%emt 0:01:37]} Ra4 {[%emt 0:00:43]} 37. Bf3 {[%emt 0:01:14]} Ra1+ {[%emt 0:01:12]} 38. Kh2 {[%emt 0:00:03]} Bxf3 {[%emt 0:00:08]} 39. gxf3 {[%emt 0:00:01]} Rb1 {[%emt 0:00:05]} 40. h6 {[%emt 0:00:49]} g6 {[%emt 0:02:57]} 41. Nc5 {[%emt 0:01:07]} Rxb5 {[%emt 0:01:00]} 42. Ne4 {[%emt 0:00:01]} Ke7 {[%emt 0:01:43]} 43. Kg2 {[%emt 0:00:17]} g5 {[%emt 0:06:14]} 44. Rc8 {[%emt 0:00:45]} Bd8 {[%emt 0:01:09]} 45. Ra8 {[%emt 0:00:17]} Rd5 {[%emt 0:01:39]} 46. Ra7+ {[%emt 0:00:23]} Rd7 {[%emt 0:00:02]} 47. Ra6 {[%emt 0:00:10]} Bc7 {[%emt 0:04:50]} 48. Nxg5 {[%emt 0:00:30]} Bf4 {[%emt 0:00:09]} 49. Ra5 {[%emt 0:01:17]} f6 {[%emt 0:00:02]} 50. Nh3 {[%emt 0:00:18]} Bd2 {[%emt 0:00:45]} 51. Rb5 {[%emt 0:00:01]} Kf7 {[%emt 0:00:17]} 52. f4 {[%emt 0:00:09]} Kg6 {[%emt 0:01:21]} 53. Rb6 {[%emt 0:00:01]} Re7 {[%emt 0:00:30]} 54. Kf3 {[%emt 0:00:29]} Ba5 {[%emt 0:01:51]} 55. Ra6 {[%emt 0:00:25]} Bc7 {[%emt 0:00:05]} 56. Rc6 {[%emt 0:00:35]} Bd8 {[%emt 0:01:10]} 57. Ng1 {[%emt 0:01:07]} e5 {[%emt 0:05:19]} 58. fxe5 {[%emt 0:00:58]} Rxe5 {[%emt 0:00:03]} 59. Ne2 {[%emt 0:00:35]} Rf5+ {[%emt 0:00:01]} 60. Kg2 {[%emt 0:00:44]} Kxh6 {[%emt 0:00:02]} 61. Rd6 {[%emt 0:00:37]} Bc7 {[%emt 0:00:22]} 62. Rc6 {[%emt 0:00:18]} Be5 {[%emt 0:00:13]} 63. Ng3 {[%emt 0:00:35]} Rf4 {[%emt 0:00:15]} 64. Ne2 {[%emt 0:00:29]} Rg4+ {[%emt 0:00:48]} 65. Kh3 {[%emt 0:00:28]} Re4 {[%emt 0:00:11]} 66. Ng3 {[%emt 0:00:18]} Rf4 {[%emt 0:00:37]} 67. Kg2 {[%emt 0:00:11]} Kg6 {[%emt 0:00:13]} 68. Ne2 {[%emt 0:01:37]} Rg4+ {[%emt 0:00:19]} 69. Kh3 {[%emt 0:00:13]} Ra4 {[%emt 0:00:02]} 70. Rc2 {[%emt 0:00:27]} h5 {[%emt 0:00:23]} 71. Ng1 {[%emt 0:00:26]} h4 {[%emt 0:01:15]} 72. Re2 {[%emt 0:00:15]} Rf4 {[%emt 0:01:51]} 73. Re3 {[%emt 0:01:10]} Bd4 {[%emt 0:00:12]} 74. Rf3 {[%emt 0:00:20]} Rxf3+ {[%emt 0:00:10]} 75. Nxf3 {[%emt 0:00:02]} Bxf2 {[%emt 0:00:04]} 76. Kg2 {[%emt 0:00:42]} Bg3 {[%emt 0:00:04]} 77. Nd4 {[%emt 0:00:10]} Kg5 {[%emt 0:00:26]} 78. Kf3 {[%emt 0:00:23]} Be5 {[%emt 0:00:29]} 79. Nc6 {[%emt 0:01:08]} Bc3 {[%emt 0:00:34]} 80. Ne7 {[%emt 0:00:07]} Be1 {[%emt 0:00:20]} 81. Kg2 {[%emt 0:00:45]} Kg4 {[%emt 0:06:58]} 82. Nd5 {[%emt 0:00:05]} h3+ {[%emt 0:00:01]} 83. Kh1 {[%emt 0:00:06]} Bh4 {[%emt 0:00:11]} 84. Nxf6+ {[%emt 0:00:05]} Bxf6 {[%emt 0:00:03]} 85. Kh2 {[%emt 0:00:07]} Bd4 {[%emt 0:00:36]} 86. Kh1 {[%emt 0:00:06]} Kg3 {[%emt 0:00:03]} 1/2-1/2

[Event "1st Grandiscacchi Cattolica 2022"]
[Site "Cattolica"]
[Date "2022.03.05"]
[Round "5.8"]
[White "Davtyan, Artur"]
[Black "Raccanello, Marianna"]
[Result "1-0"]
[ECO "E97"]
[WhiteElo "2460"]
[BlackElo "2051"]
[Annotator "ChessBase"]
[PlyCount "67"]
[EventDate "2022.03.03"]
[EventType "swiss"]
[EventCountry "ITA"]
[SourceTitle "playchess.com"]
[Source "ChessBase"]
[SourceQuality "1"]
[TimeControl "5400+30"]

1. d4 {[%emt 0:01:40]} Nf6 {[%emt 0:00:16]} 2. c4 {[%emt 0:00:05]} g6 {[%emt 0:00:11]} 3. Nc3 {[%emt 1:30:15]} Bg7 {[%emt 0:00:05]} 4. e4 {[%emt 0:00:00]} d6 {[%emt 0:00:06]} 5. Be2 {[%emt 0:00:00]} O-O {[%emt 0:00:09]} 6. Nf3 {[%emt 0:00:00]} e5 {[%emt 0:00:08]} 7. O-O {[%emt 0:00:00]} Nc6 {[%emt 0:00:21]} 8. d5 {[%emt 0:00:00]} Ne7 {[%emt 0:00:06]} 9. b4 {[%emt 0:00:00]} a5 {[%emt 0:00:09]} 10. bxa5 {[%emt 0:00:00]} Rxa5 {[%emt 0:00:08]} 11. a4 {[%emt 0:00:00]} c5 {[%emt 0:00:25]} 12. Nd2 {[%emt 0:00:00]} Ne8 {[%emt 0:04:19]} 13. Nb3 {[%emt 0:00:00]} Ra6 {[%emt 0:00:06]} 14. Bd2 {[%emt 0:00:00]} f5 {[%emt 0:01:05]} 15. a5 {[%emt 0:00:00]} Nf6 {[%emt 0:07:16]} 16. exf5 {[%emt 0:00:00]} Nxf5 {[%emt 0:23:08]} 17. Bd3 {[%emt 0:00:00]} Nd4 {[%emt 0:10:13]} 18. Ne4 {[%emt 0:00:00]} Nh5 {[%emt 0:04:42]} 19. Nxd4 {[%emt 0:00:00]} cxd4 {[%emt 0:15:52]} 20. c5 {[%emt 0:00:00]} dxc5 {[%emt 0:00:05]} 21. Bxa6 {[%emt 0:00:00]} bxa6 {[%emt 0:00:06]} 22. Qb3 {[%emt 0:00:00]} Bf5 {[%emt 0:15:48]} 23. Nxc5 {[%emt 0:00:00]} Qd6 {[%emt 0:00:24]} 24. Ne6 {[%emt 0:00:00]} Rb8 {[%emt 0:00:04]} 25. Qc4 {[%emt 0:00:00]} Nf6 {[%emt 0:03:43]} 26. Nxg7 {[%emt 0:00:00]} Kxg7 {[%emt 0:00:08]} 27. f4 {[%emt 0:03:41]} Rc8 {[%emt 0:05:24]} 28. fxe5 {[%emt 0:00:30]} Qxe5 {[%emt 0:01:52]} 29. Qxa6 {[%emt 0:00:32]} Ne4 {[%emt 0:04:16]} 30. Rae1 {[%emt 0:02:37]} Rd8 {[%emt 0:04:15]} 31. Bg5 {[%emt 0:02:13]} Rxd5 {[%emt 0:00:24]} 32. Rxe4 {[%emt 0:00:44]} Qxe4 {[%emt 0:00:04]} 33. Qf6+ {[%emt 0:00:04]} Kg8 {[%emt 0:01:42]} 34. Bh6 {[%emt 0:00:01]} 1-0

[Event "1st Grandiscacchi Cattolica 2022"]
[Site "Cattolica"]
[Date "2022.03.05"]
[Round "6.3"]
[White "Sebenik, Matej"]
[Black "Pranav Anand"]
[Result "1/2-1/2"]
[ECO "D11"]
[WhiteElo "2510"]
[BlackElo "2436"]
[Annotator "ChessBase"]
[PlyCount "79"]
[EventDate "2022.03.03"]
[EventType "swiss"]
[EventCountry "ITA"]
[SourceTitle "playchess.com"]
[Source "ChessBase"]
[SourceQuality "1"]
[TimeControl "5400+30"]

1. d4 {[%emt 0:00:08]} d5 {[%emt 0:00:45]} 2. Nf3 {[%emt 0:00:08]} Nf6 {[%emt 0:00:07]} 3. e3 {[%emt 0:00:23]} c6 {[%emt 1:31:08]} 4. Bd3 {[%emt 1:31:51]} Bg4 {[%emt 0:00:00]} 5. Nbd2 {[%emt 0:00:30]} Nbd7 {[%emt 0:00:00]} 6. c4 {[%emt 0:00:00]} e6 7. O-O {[%emt 0:00:00]} Bd6 8. b3 {[%emt 0:01:30]} O-O {[%emt 0:00:00]} 9. Bb2 {[%emt 0:00:00]} Qe7 {[%emt 0:00:00]} 10. Qc2 {[%emt 0:00:00]} e5 {[%emt 0:00:00]} 11. dxe5 {[%emt 0:00:00]} Nxe5 {[%emt 0:00:00]} 12. Nxe5 {[%emt 0:00:00]} Bxe5 {[%emt 0:00:00]} 13. Bxe5 {[%emt 0:00:00]} Qxe5 {[%emt 0:00:00]} 14. h3 {[%emt 0:00:00]} Bh5 {[%emt 0:00:00]} 15. cxd5 {[%emt 0:00:00]} Qxd5 {[%emt 0:00:00]} 16. Ne4 {[%emt 0:00:00]} Nxe4 {[%emt 0:00:00]} 17. Bxe4 {[%emt 0:00:00]} Bg6 {[%emt 0:00:00]} 18. Bxg6 {[%emt 0:00:00]} hxg6 {[%emt 0:00:00]} 19. Rad1 {[%emt 0:00:00]} Qe6 {[%emt 0:00:00]} 20. Rd4 {[%emt 0:00:00]} Rfd8 {[%emt 0:00:00]} 21. Rfd1 {[%emt 0:00:00]} Qe7 {[%emt 0:00:00]} 22. Qd3 {[%emt 0:00:00]} Rxd4 {[%emt 0:00:00]} 23. Qxd4 {[%emt 0:00:00]} g5 {[%emt 0:00:00]} 24. g3 {[%emt 0:08:00]} a5 {[%emt 0:00:00]} 25. Qd7 {[%emt 0:00:00]} Kf8 {[%emt 0:00:00]} 26. Rd4 {[%emt 0:00:00]} g6 {[%emt 0:00:00]} 27. Kf1 {[%emt 0:00:00]} Re8 {[%emt 0:00:00]} 28. a4 {[%emt 0:00:00]} Qxd7 {[%emt 0:00:00]} 29. Rxd7 {[%emt 0:00:00]} Re7 {[%emt 0:00:00]} 30. Rd8+ {[%emt 0:00:00]} Re8 {[%emt 0:00:06]} 31. Rxe8+ Kxe8 32. f4 {[%emt 0:00:00]} gxf4 {[%emt 0:01:34]} 33. exf4 {[%emt 0:00:00]} f6 {[%emt 0:05:25]} 34. Ke2 {[%emt 0:00:35]} Ke7 {[%emt 0:00:21]} 35. Ke3 {[%emt 0:01:55]} f5 {[%emt 0:03:28]} 36. g4 {[%emt 0:00:24]} fxg4 {[%emt 0:00:03]} 37. hxg4 {[%emt 0:00:03]} Kf6 {[%emt 0:01:35]} 38. Kd4 {[%emt 0:01:42]} b6 {[%emt 0:00:04]} 39. Ke4 {[%emt 0:00:22]} Ke6 {[%emt 0:00:07]} 40. Kd4 {[%emt 0:01:30]} 1/2-1/2

[Event "1st Grandiscacchi Cattolica 2022"]
[Site "Cattolica"]
[Date "2022.03.05"]
[Round "6.8"]
[White "Barp, Alberto"]
[Black "Van Foreest, Lucas"]
[Result "1-0"]
[ECO "E18"]
[WhiteElo "2388"]
[BlackElo "2563"]
[Annotator "ChessBase"]
[PlyCount "85"]
[EventDate "2022.03.03"]
[EventType "swiss"]
[EventCountry "ITA"]
[SourceTitle "playchess.com"]
[Source "ChessBase"]
[SourceQuality "1"]
[TimeControl "5400+30"]

1. d4 {[%emt 0:01:47]} Nf6 {[%emt 0:03:02]} 2. c4 {[%emt 0:00:09]} e6 {[%emt 0:00:11]} 3. Nf3 {[%emt 0:00:06]} b6 {[%emt 0:00:06]} 4. g3 {[%emt 0:00:07]} Bb7 {[%emt 0:00:02]} 5. Bg2 {[%emt 0:00:08]} Be7 {[%emt 0:00:03]} 6. O-O {[%emt 0:00:11]} O-O {[%emt 0:00:03]} 7. Nc3 {[%emt 0:00:15]} Na6 {[%emt 0:00:05]} 8. Ne5 {[%emt 0:02:06]} Bxg2 {[%emt 0:00:18]} 9. Kxg2 {[%emt 0:00:04]} Qc8 {[%emt 0:00:02]} 10. e4 {[%emt 0:07:42]} Bb4 {[%emt 0:00:11]} 11. f3 {[%emt 0:09:24]} Bxc3 {[%emt 0:00:17]} 12. bxc3 {[%emt 0:00:06]} Kh8 {[%emt 0:10:56]} 13. Bg5 {[%emt 0:06:58]} Ng8 {[%emt 0:00:47]} 14. Be3 {[%emt 0:01:25]} Nb8 {[%emt 0:03:07]} 15. f4 {[%emt 0:07:07]} Qe8 {[%emt 0:11:23]} 16. Qd3 {[%emt 0:04:13]} d6 {[%emt 0:01:28]} 17. Nf3 {[%emt 0:00:07]} Nc6 {[%emt 0:12:14]} 18. d5 {[%emt 0:08:24]} Na5 {[%emt 0:01:34]} 19. e5 {[%emt 0:09:02]} h6 {[%emt 0:09:37]} 20. Rae1 {[%emt 0:18:32]} Rd8 {[%emt 0:03:17]} 21. f5 {[%emt 0:10:45]} exf5 {[%emt 0:03:50]} 22. exd6 {[%emt 0:01:38]} Qa4 {[%emt 0:20:21]} 23. dxc7 {[%emt 0:00:31]} Rd7 {[%emt 0:00:17]} 24. Ne5 {[%emt 0:02:36]} Rxc7 {[%emt 0:00:14]} 25. d6 {[%emt 0:00:34]} Rcc8 {[%emt 0:03:56]} 26. Qxf5 {[%emt 0:01:38]} Nxc4 {[%emt 0:02:02]} 27. Nxf7+ {[%emt 0:02:27]} Rxf7 {[%emt 0:00:01]} 28. Qxf7 {[%emt 0:00:18]} Nxd6 {[%emt 0:00:58]} 29. Qd5 {[%emt 0:00:11]} Nb5 {[%emt 0:02:15]} 30. Rf4 {[%emt 0:01:38]} Qa6 {[%emt 0:02:58]} 31. Bd4 {[%emt 0:01:36]} Nxd4 {[%emt 0:00:09]} 32. cxd4 {[%emt 0:00:31]} Nf6 {[%emt 0:02:39]} 33. Rxf6 {[%emt 0:01:10]} gxf6 {[%emt 0:00:06]} 34. Qf7 {[%emt 0:00:36]} b5 {[%emt 0:02:14]} 35. Re7 {[%emt 0:01:49]} Rc2+ {[%emt 0:00:08]} 36. Kh3 {[%emt 0:00:03]} Qc8+ {[%emt 0:00:12]} 37. Rd7 {[%emt 0:01:40]} Rxh2+ {[%emt 0:01:54]} 38. Kxh2 {[%emt 0:00:04]} Qc2+ {[%emt 0:00:06]} 39. Kh3 {[%emt 0:00:15]} Qf5+ {[%emt 0:00:17]} 40. Kg2 {[%emt 0:00:03]} Qc2+ {[%emt 0:01:24]} 41. Kf3 {[%emt 0:00:04]} Qd1+ {[%emt 0:01:40]} 42. Ke4 {[%emt 0:00:45]} Qh1+ {[%emt 0:01:46]} 43. Kf5 {[%emt 0:00:15]} 1-0

[Event "1st Grandiscacchi Cattolica 2022"]
[Site "Cattolica"]
[Date "2022.03.05"]
[Round "6.9"]
[White "Begmuratov, Khumoyun"]
[Black "Nesterov, Arseniy"]
[Result "0-1"]
[ECO "C00"]
[WhiteElo "2358"]
[BlackElo "2522"]
[Annotator "ChessBase"]
[PlyCount "128"]
[EventDate "2022.03.03"]
[EventType "swiss"]
[EventCountry "ITA"]
[SourceTitle "playchess.com"]
[Source "ChessBase"]
[SourceQuality "1"]
[TimeControl "5400+30"]

1. e4 {[%emt 0:00:06]} e6 {[%emt 0:00:07]} 2. d3 {[%emt 0:00:26]} d5 {[%emt 0:00:06]} 3. Nd2 {[%emt 0:00:16]} Nf6 {[%emt 0:00:07]} 4. Ngf3 {[%emt 0:00:16]} b6 {[%emt 0:00:09]} 5. c3 {[%emt 0:13:06]} c5 {[%emt 0:01:35]} 6. g3 {[%emt 0:00:31]} Be7 {[%emt 0:02:21]} 7. Bg2 {[%emt 0:01:15]} Ba6 {[%emt 0:03:48]} 8. c4 {[%emt 0:12:10]} O-O {[%emt 0:00:27]} 9. O-O {[%emt 0:00:28]} Nc6 {[%emt 0:00:19]} 10. b3 {[%emt 0:06:44]} dxe4 {[%emt 0:10:03]} 11. dxe4 {[%emt 0:00:45]} Qc7 {[%emt 0:00:19]} 12. Bb2 {[%emt 0:00:59]} e5 {[%emt 0:00:33]} 13. Qe2 {[%emt 0:04:20]} Rfd8 {[%emt 0:02:16]} 14. Rfd1 {[%emt 0:00:26]} Nd4 {[%emt 0:00:28]} 15. Nxd4 {[%emt 0:05:03]} cxd4 {[%emt 0:00:03]} 16. Nf3 {[%emt 0:06:05]} Nd7 {[%emt 0:02:32]} 17. Ne1 {[%emt 0:02:26]} Nc5 {[%emt 0:00:20]} 18. Qc2 {[%emt 0:07:39]} Bb7 {[%emt 0:05:13]} 19. Ba3 {[%emt 0:02:25]} Ne6 {[%emt 0:01:18]} 20. Bxe7 {[%emt 0:00:49]} Qxe7 {[%emt 0:00:02]} 21. Nd3 {[%emt 0:02:42]} Qd6 {[%emt 0:04:14]} 22. Qd2 {[%emt 0:03:02]} Nc5 {[%emt 0:00:51]} 23. Nxc5 {[%emt 0:01:13]} bxc5 {[%emt 0:00:29]} 24. Rab1 {[%emt 0:01:37]} a5 {[%emt 0:00:36]} 25. a3 {[%emt 0:02:03]} Bc6 {[%emt 0:05:16]} 26. Rb2 {[%emt 0:02:25]} Rdb8 {[%emt 0:01:32]} 27. Rdb1 {[%emt 0:00:58]} h6 {[%emt 0:01:33]} 28. h3 {[%emt 0:00:35]} Qg6 {[%emt 0:03:03]} 29. Re1 {[%emt 0:01:18]} Rb7 {[%emt 0:03:03]} 30. Kh2 {[%emt 0:03:19]} Qg5 {[%emt 0:00:54]} 31. Qd3 {[%emt 0:01:53]} Rab8 {[%emt 0:00:58]} 32. Reb1 {[%emt 0:00:01]} Rb6 {[%emt 0:03:35]} 33. Qc2 {[%emt 0:00:29]} h5 {[%emt 0:03:59]} 34. h4 {[%emt 0:00:31]} Qh6 {[%emt 0:00:52]} 35. Qd3 {[%emt 0:01:17]} Bd7 {[%emt 0:03:14]} 36. Bh3 {[%emt 0:01:04]} Bxh3 {[%emt 0:00:31]} 37. Kxh3 {[%emt 0:00:01]} Qd6 {[%emt 0:00:36]} 38. Kh2 {[%emt 0:00:52]} Qc6 {[%emt 0:06:39]} 39. f3 {[%emt 0:00:38]} Qf6 {[%emt 0:01:57]} 40. a4 {[%emt 0:02:46]} g5 {[%emt 0:01:27]} 41. hxg5 {[%emt 0:01:44]} Qxg5 {[%emt 0:00:09]} 42. Rg2 {[%emt 0:00:31]} Kf8 {[%emt 0:01:06]} 43. Kh1 {[%emt 0:01:13]} Ke7 {[%emt 0:04:18]} 44. Kg1 {[%emt 0:01:23]} R8b7 {[%emt 0:03:51]} 45. Kf1 {[%emt 0:00:50]} h4 {[%emt 0:01:51]} 46. gxh4 {[%emt 0:01:03]} Qxh4 {[%emt 0:00:24]} 47. Ke2 {[%emt 0:00:07]} Qf4 {[%emt 0:00:51]} 48. Rf2 {[%emt 0:00:23]} Rb4 {[%emt 0:02:28]} 49. Kd1 {[%emt 0:01:24]} Qg3 {[%emt 0:01:13]} 50. Re2 {[%emt 0:00:47]} Qg1+ {[%emt 0:02:17]} 51. Kd2 {[%emt 0:02:01]} Qxb1 {[%emt 0:00:41]} 52. Qxb1 {[%emt 0:00:29]} Rxb3 {[%emt 0:00:06]} 53. Qd1 {[%emt 0:02:27]} Rb2+ {[%emt 0:00:44]} 54. Ke1 {[%emt 0:00:05]} Rb1 {[%emt 0:00:06]} 55. f4 {[%emt 0:00:02]} exf4 {[%emt 0:00:18]} 56. Rf2 {[%emt 0:00:11]} Rxd1+ {[%emt 0:00:05]} 57. Kxd1 {[%emt 0:00:04]} Rb4 {[%emt 0:00:05]} 58. Rxf4 {[%emt 0:00:03]} Rxa4 {[%emt 0:00:04]} 59. e5 {[%emt 0:00:10]} Rxc4 {[%emt 0:00:04]} 60. Rf6 {[%emt 0:00:02]} Rc3 {[%emt 0:00:26]} 61. Ra6 {[%emt 0:00:03]} Re3 {[%emt 0:00:04]} 62. Kd2 {[%emt 0:00:09]} Rxe5 {[%emt 0:00:06]} 63. Kd3 {[%emt 0:00:03]} f5 {[%emt 0:00:09]} 64. Rxa5 {[%emt 0:00:02]} c4+ {[%emt 0:00:06]} 0-1